Department Family,Entity,Date,Expenses Type,Expense Area,Supplier,Transaction Number,  Total  ,
Department of Health,The Christie NHS Foundation Trust,23/04/2020,Drugs,Drugs,ALCURA UK LIMITED,0000642541,"79,784.93",
Department of Health,The Christie NHS Foundation Trust,23/04/2020,Drugs,Christie Medical Physics,ALLIANCE MEDICAL RADIOPHARMACY LIMITED,0000642335,"39,074.88",
Department of Health,The Christie NHS Foundation Trust,30/04/2020,Drugs,Drugs,BAXTER HEALTHCARE LTD,0000642680,"139,688.41",
Department of Health,The Christie NHS Foundation Trust,01/04/2020,Drugs,Drugs,BAXTER HEALTHCARE LTD,0000642327,"351,380.40",
Department of Health,The Christie NHS Foundation Trust,30/04/2020,Drugs,Drugs,BAXTER HEALTHCARE LTD,0000642673,"82,670.15",
Department of Health,The Christie NHS Foundation Trust,30/04/2020,Drugs,Drugs,BAXTER HEALTHCARE LTD,0000642480,"60,453.11",
Department of Health,The Christie NHS Foundation Trust,30/04/2020,Drugs,Drugs,BAXTER HEALTHCARE LTD,0000642507,"157,935.58",
Department of Health,The Christie NHS Foundation Trust,30/04/2020,Drugs,Drugs,BAXTER HEALTHCARE LTD,0000642519,"104,135.60",
Department of Health,The Christie NHS Foundation Trust,17/04/2020,Drugs,Drugs,BAXTER HEALTHCARE LTD,0000641437,"351,380.40",
Department of Health,The Christie NHS Foundation Trust,30/04/2020,Drugs,Drugs,BAXTER HEALTHCARE LTD,0000641154,"144,724.52",
Department of Health,The Christie NHS Foundation Trust,23/04/2020,Drugs,Drugs,BAXTER HEALTHCARE LTD,0000641153,"198,664.54",
Department of Health,The Christie NHS Foundation Trust,30/04/2020,Drugs,Drugs,BAXTER HEALTHCARE LTD,0000641284,"78,757.81",
Department of Health,The Christie NHS Foundation Trust,30/04/2020,Drugs,Drugs,BAXTER HEALTHCARE LTD,0000641300,"131,242.10",
Department of Health,The Christie NHS Foundation Trust,30/04/2020,Drugs,Drugs,BAXTER HEALTHCARE LTD,0000641514,"86,658.46",
Department of Health,The Christie NHS Foundation Trust,30/04/2020,Drugs,Drugs,BAXTER HEALTHCARE LTD,0000641775,"77,777.06",
Department of Health,The Christie NHS Foundation Trust,30/04/2020,Drugs,Drugs,BAXTER HEALTHCARE LTD,0000641793,"115,275.44",
Department of Health,The Christie NHS Foundation Trust,30/04/2020,Drugs,Drugs,BAXTER HEALTHCARE LTD,0000641798,"113,608.91",
Department of Health,The Christie NHS Foundation Trust,30/04/2020,Drugs,Drugs,BAXTER HEALTHCARE LTD,0000641823,"103,953.56",
Department of Health,The Christie NHS Foundation Trust,30/04/2020,Drugs,Drugs,BAXTER HEALTHCARE LTD,0000641972,"122,436.10",
Department of Health,The Christie NHS Foundation Trust,30/04/2020,Drugs,Drugs,BAXTER HEALTHCARE LTD,0000641975,"61,494.40",
Department of Health,The Christie NHS Foundation Trust,30/04/2020,Drugs,Drugs,BAXTER HEALTHCARE LTD,0000642153,"157,776.40",
Department of Health,The Christie NHS Foundation Trust,16/04/2020,Drugs,Drugs,BAXTER HEALTHCARE LTD,0000640603,"87,387.66",
Department of Health,The Christie NHS Foundation Trust,16/04/2020,Drugs,Drugs,BAXTER HEALTHCARE LTD,0000640604,"120,612.96",
Department of Health,The Christie NHS Foundation Trust,16/04/2020,Drugs,Drugs,BAXTER HEALTHCARE LTD,0000640607,"128,355.84",
Department of Health,The Christie NHS Foundation Trust,16/04/2020,Drugs,Drugs,BAXTER HEALTHCARE LTD,0000640608,"108,381.19",
Department of Health,The Christie NHS Foundation Trust,16/04/2020,Drugs,Drugs,BAXTER HEALTHCARE LTD,0000640611,"209,275.18",
Department of Health,The Christie NHS Foundation Trust,16/04/2020,Drugs,Drugs,BAXTER HEALTHCARE LTD,0000640617,"195,993.60",
Department of Health,The Christie NHS Foundation Trust,16/04/2020,Drugs,Drugs,BAXTER HEALTHCARE LTD,0000640800,"168,830.29",
Department of Health,The Christie NHS Foundation Trust,23/04/2020,Medical Equipment,Capital,BECTON DICKINSON U K LTD,0000642125,"29,402.40",
Department of Health,The Christie NHS Foundation Trust,30/04/2020,COVID 19 Works,Capital,CITY BUILD MANCHESTER LTD,0000642825,"33,378.25",
Department of Health,The Christie NHS Foundation Trust,30/04/2020,Software Renewal Purchase,Quality & Standards,DATIX LTD,0000642528,"35,860.71",
Department of Health,The Christie NHS Foundation Trust,02/04/2020,Medical Contract Charge 19/20,Network Services,EAST CHESHIRE NHS TRUST,0000635483,"44,625.92",
Department of Health,The Christie NHS Foundation Trust,02/04/2020,Medical Contract Charge 19/20,Network Services,EAST CHESHIRE NHS TRUST,0000639711,"44,625.92",
Department of Health,The Christie NHS Foundation Trust,02/04/2020,Drugs,Drugs,EAST CHESHIRE NHS TRUST,0000635074,"100,191.11",
Department of Health,The Christie NHS Foundation Trust,02/04/2020,Medical Contract Charge 19/20,Network Services,EAST CHESHIRE NHS TRUST,0000637026,"44,625.92",
Department of Health,The Christie NHS Foundation Trust,30/04/2020,Drugs,Drugs,EAST CHESHIRE NHS TRUST,0000642681,"83,877.11",
Department of Health,The Christie NHS Foundation Trust,30/04/2020,Drugs,Drugs,EAST CHESHIRE NHS TRUST,0000642683,"91,959.46",
Department of Health,The Christie NHS Foundation Trust,16/04/2020,Electricity Bill Mar 20,Network Services,EDF ENERGY,0000641764,"51,486.59",
Department of Health,The Christie NHS Foundation Trust,16/04/2020,Electricity Bill Mar 20,Network Services,EDF ENERGY,0000641909,"26,892.26",
Department of Health,The Christie NHS Foundation Trust,02/04/2020,Medical Equipment,Network Services,HEALTH TEC MEDICAL LTD,0000641071,"179,928.00",
Department of Health,The Christie NHS Foundation Trust,23/04/2020,Drugs,Drugs,HEALTHCARE AT HOME LTD,0000642573,"33,881.00",
Department of Health,The Christie NHS Foundation Trust,30/04/2020,Software Equipment,Capital,HP INC UK LIMITED,0000642201,"94,304.64",
Department of Health,The Christie NHS Foundation Trust,30/04/2020,Software Equipment, Digital Services,HP INC UK LIMITED,0000642202,"58,940.40",
Department of Health,The Christie NHS Foundation Trust,16/04/2020,Software Equipment,Capital,HP INC UK LIMITED,0000641648,"162,747.67",
Department of Health,The Christie NHS Foundation Trust,30/04/2020,Software Equipment, Digital Services,HP INC UK LIMITED,0000642087,"71,338.56",
Department of Health,The Christie NHS Foundation Trust,30/04/2020,Decontamination System Purchase,Capital,HYGIENE SOLUTIONS,0000642676,"53,670.00",
Department of Health,The Christie NHS Foundation Trust,23/04/2020,Technology Equipment, Digital Services,INSIGHT DIRECT (UK) LTD,0000642360,"39,581.93",
Department of Health,The Christie NHS Foundation Trust,16/04/2020,Technology Equipment, Digital Services,INSIGHT DIRECT (UK) LTD,0000641318,"95,826.00",
Department of Health,The Christie NHS Foundation Trust,23/04/2020,The Paterson Redevelopment Project,Capital,INTEGRATED HEALTH PROJECTS,0000642196,"1,673,831.59",
Department of Health,The Christie NHS Foundation Trust,30/04/2020,Christie Oak Road Treatment Centre,Capital,INTEGRATED HEALTH PROJECTS,0000642558,"1,941,232.15",
Department of Health,The Christie NHS Foundation Trust,08/04/2020,Christie Oak Road Treatment Centre,Capital,INTEGRATED HEALTH PROJECTS,0000641696,"1,231,289.64",
Department of Health,The Christie NHS Foundation Trust,02/04/2020,CT-PET Scans August 2019,Clin Support & Spec Surgery,MANCHESTER UNIVERSITY NHS FT,0000640012,"524,332.00",
Department of Health,The Christie NHS Foundation Trust,02/04/2020,CT-PET Scans March 2020,Christie Medical Physics,MANCHESTER UNIVERSITY NHS FT,0000626080,"93,452.00",
Department of Health,The Christie NHS Foundation Trust,30/04/2020,CT-PET Scans March 2020,Christie Medical Physics,MANCHESTER UNIVERSITY NHS FT,0000642751,"83,494.00",
Department of Health,The Christie NHS Foundation Trust,16/04/2020,CT-PET Scans Feb 2020,Christie Medical Physics,MANCHESTER UNIVERSITY NHS FT,0000639723,"118,730.00",
Department of Health,The Christie NHS Foundation Trust,16/04/2020,Recharge of Clinical Nurse Specialist - Q3 2019/20,Clin Support & Spec Surgery,MANCHESTER UNIVERSITY NHS FT,0000635519,"28,211.69",
Department of Health,The Christie NHS Foundation Trust,16/04/2020,Recharge of Clinical Nurse Specialist - Q4 2019/20,Clin Support & Spec Surgery,MANCHESTER UNIVERSITY NHS FT,0000637018,"28,211.69",
Department of Health,The Christie NHS Foundation Trust,02/04/2020,Drugs,Drugs,MID CHESHIRE HOSPITALS NHS FT,0000634969,"159,051.12",
Department of Health,The Christie NHS Foundation Trust,02/04/2020,Drugs,Drugs,MID CHESHIRE HOSPITALS NHS FT,0000631551,"132,716.72",
Department of Health,The Christie NHS Foundation Trust,02/04/2020,Drugs,Drugs,MID CHESHIRE HOSPITALS NHS FT,0000636721,"219,623.17",
Department of Health,The Christie NHS Foundation Trust,02/04/2020,Blood Products,Network Services,NHS BLOOD AND TRANSPLANT,0000637334,"30,237.31",
Department of Health,The Christie NHS Foundation Trust,02/04/2020,Blood Products,Network Services,NHS BLOOD AND TRANSPLANT,0000639547,"33,886.14",
Department of Health,The Christie NHS Foundation Trust,15/04/2020,Blood Products,Network Services,NHS BLOOD AND TRANSPLANT,0000642402,"188,268.30",
Department of Health,The Christie NHS Foundation Trust,16/04/2020,NHS Litigation (NHSLA),Quality & Standards,NHS LITIGATION AUTHORITY,0000643234,"152,871.30",
Department of Health,The Christie NHS Foundation Trust,02/04/2020,All Wards & Departments,The Christie NHS FT Balance,NHS SUPPLY CHAIN,0000641046,"83,809.19",
Department of Health,The Christie NHS Foundation Trust,23/04/2020,All Wards & Departments,The Christie NHS FT Balance,NHS SUPPLY CHAIN,0000641878,"101,943.13",
Department of Health,The Christie NHS Foundation Trust,08/04/2020,All Wards & Departments,The Christie NHS FT Balance,NHS SUPPLY CHAIN,0000640602,"70,625.38",
Department of Health,The Christie NHS Foundation Trust,30/04/2020,Drugs,Drugs,NOVARTIS PHARMACEUTICALS UK LTD,0000642004,"257,184.00",
Department of Health,The Christie NHS Foundation Trust,08/04/2020,MacMillan Project Charges Q1 2020, Manchester Cancer,SALFORD ROYAL HOSP NHS FT,0000640584,"100,413.05",
Department of Health,The Christie NHS Foundation Trust,02/04/2020,Development Funding Project, Manchester Cancer,SALFORD ROYAL HOSP NHS FT,0000636292,"400,000.00",
Department of Health,The Christie NHS Foundation Trust,23/04/2020,Software Purchase, Digital Services,SOFTCAT PLC,0000642442,"774,921.36",
Department of Health,The Christie NHS Foundation Trust,16/04/2020,Software Purchase,Capital,SOFTCAT PLC,0000641902,"109,694.86",
Department of Health,The Christie NHS Foundation Trust,08/04/2020,Software Purchase, Digital Services,SOFTCAT PLC,0000641435,"50,156.06",
Department of Health,The Christie NHS Foundation Trust,02/04/2020,Infrastructure Installation - April 2020,Other Income Levies and Gra,ST HELENS & KNOWSLEY HOSPITALS NHS TRUST,0000640308,"291,000.00",
Department of Health,The Christie NHS Foundation Trust,30/04/2020,Infrastructure Installation - May 2020,Other Income Levies and Gra,ST HELENS & KNOWSLEY HOSPITALS NHS TRUST,0000642607,"291,000.00",
Department of Health,The Christie NHS Foundation Trust,08/04/2020,COVID-19 Hotel,Network Services,STAYCITY MANCHESTER LTD,0000641358,"119,013.36",
Department of Health,The Christie NHS Foundation Trust,16/04/2020,Chemo SLA Invoice,Network Services,STOCKPORT NHS FOUNDATION TRUST,0000634673,"29,880.00",
Department of Health,The Christie NHS Foundation Trust,16/04/2020,Chemo SLA Invoice,Network Services,STOCKPORT NHS FOUNDATION TRUST,0000634680,"29,880.00",
Department of Health,The Christie NHS Foundation Trust,16/04/2020,Chemo SLA Invoice,Network Services,STOCKPORT NHS FOUNDATION TRUST,0000636333,"29,880.00",
Department of Health,The Christie NHS Foundation Trust,16/04/2020,Chemo SLA Invoice,Network Services,STOCKPORT NHS FOUNDATION TRUST,0000638286,"29,880.00",
Department of Health,The Christie NHS Foundation Trust,16/04/2020,Chemo SLA Invoice,Network Services,STOCKPORT NHS FOUNDATION TRUST,0000634677,"29,880.00",
Department of Health,The Christie NHS Foundation Trust,16/04/2020,Chemo SLA Invoice,Network Services,STOCKPORT NHS FOUNDATION TRUST,0000634679,"29,880.00",
Department of Health,The Christie NHS Foundation Trust,16/04/2020,Chemo SLA Invoice,Network Services,STOCKPORT NHS FOUNDATION TRUST,0000634675,"29,880.00",
Department of Health,The Christie NHS Foundation Trust,16/04/2020,Chemo SLA Invoice,Network Services,STOCKPORT NHS FOUNDATION TRUST,0000634676,"29,880.00",
Department of Health,The Christie NHS Foundation Trust,16/04/2020,Chemo SLA Invoice,Network Services,STOCKPORT NHS FOUNDATION TRUST,0000638283,"29,880.00",
Department of Health,The Christie NHS Foundation Trust,23/04/2020,System Support Purchase - May 2020, Digital Services,SYSTEM C HEALTHCARE,0000642411,"28,018.18",
Department of Health,The Christie NHS Foundation Trust,02/04/2020,Software Purchase, Digital Services,TET LTD,0000641069,"39,008.16",
Department of Health,The Christie NHS Foundation Trust,30/04/2020,Drugs,Drugs,THE CHRISTIE CLINIC (HCA),0000642376,"37,536.00",
Department of Health,The Christie NHS Foundation Trust,23/04/2020,Testing Services - Feb 2020,Clin Support & Spec Surgery,THE CHRISTIE PATHOLOGY PARTNERSHIP LLP,0000640776,"461,591.01",
Department of Health,The Christie NHS Foundation Trust,23/04/2020,Testing Services - May 2020,Clin Support & Spec Surgery,THE CHRISTIE PATHOLOGY PARTNERSHIP LLP,0000642123,"379,726.40",
Department of Health,The Christie NHS Foundation Trust,16/04/2020,Estates SLA Annual Contract Q4 2020,Estates & Facilities,THE PENNINE ACUTE HOSPITAL NHS TRUST,0000640773,"38,140.50",
Department of Health,The Christie NHS Foundation Trust,02/04/2020,Software Maintenance Renewal, Digital Services,TRUST MARQUE SOLUTIONS LTD,0000641028,"77,705.28",
Department of Health,The Christie NHS Foundation Trust,02/04/2020,Manchester CTU Business Transfer Q1 19/20,Research & Innovation,UNIVERSITY OF MANCHESTER,0000640734,"112,961.00",
Department of Health,The Christie NHS Foundation Trust,02/04/2020,Manchester CTU Business Transfer Q4 2018/19,Research & Innovation,UNIVERSITY OF MANCHESTER,0000640736,"87,969.50",
Department of Health,The Christie NHS Foundation Trust,02/04/2020,Manchester CTU Business Transfer Q2 19/20,Research & Innovation,UNIVERSITY OF MANCHESTER,0000640737,"112,961.00",
Department of Health,The Christie NHS Foundation Trust,02/04/2020,Treatment Room for Therapy Centre,Capital,VARIAN MEDICAL SYSTEMS UK LTD,0000636945,"705,082.61",
Department of Health,The Christie NHS Foundation Trust,02/04/2020,Clinical Activity Charge - March 2020,Network Services,WRIGHTINGTON WIGAN AND LEIGH NHS FT,0000640092,"270,127.50",
Department of Health,The Christie NHS Foundation Trust,02/04/2020,Clinical Activity Charge - Feb 2020,Network Services,WRIGHTINGTON WIGAN AND LEIGH NHS FT,0000638103,"270,127.50",
Department of Health,The Christie NHS Foundation Trust,16/04/2020,Team Engagement Invoice,Capital,AIRE LOGIC LIMITED,0000641713,"61,480.00",
Department of Health,The Christie NHS Foundation Trust,16/04/2020,PET-CT Appointments,Christie Medical Physics,ALLIANCE MEDICAL LTD,0000641708,"163,500.00",
Department of Health,The Christie NHS Foundation Trust,16/04/2020,Base Charge for Contract, Digital Services,ANS GROUP,0000641843,"23,446.20",
Department of Health,The Christie NHS Foundation Trust,30/04/2020,Project Management Services ,Capital,ARCADIS LLP,0000640508,"46,068.87",
Department of Health,The Christie NHS Foundation Trust,30/04/2020,COVID 19 Infrastructure Works,Capital,CITY BUILD MANCHESTER LTD,0000642942,"78,913.48",
Department of Health,The Christie NHS Foundation Trust,16/04/2020,COVID 19 Infrastructure Works,Capital,CITY BUILD MANCHESTER LTD,0000641964,"32,390.56",
Department of Health,The Christie NHS Foundation Trust,23/04/2020,Test Activity Feb 2020,Clin Support & Spec Surgery,CPP FACILITIES LLP,0000640777,"219,364.94",
Department of Health,The Christie NHS Foundation Trust,23/04/2020,Test Activity May 2020,Clin Support & Spec Surgery,CPP FACILITIES LLP,0000642124,"180,459.88",
Department of Health,The Christie NHS Foundation Trust,30/04/2020,Maintenance Equipment,Network Services,ELEKTA  LTD,0000642575,"250,000.00",
Department of Health,The Christie NHS Foundation Trust,23/04/2020,Demolition Works - Macclesfield ,Capital,GALLIFORD TRY BUILDING LIMITED,0000642127,"126,660.31",
Department of Health,The Christie NHS Foundation Trust,30/04/2020,COVID 19 Works- Alterations & Relocations,Capital,HIGH LEVEL MAINTENANCE SOLUTIONS LTD,0000642748,"28,730.00",
Department of Health,The Christie NHS Foundation Trust,30/04/2020,Decontamination System Purchase,Estates & Facilities,HYGIENE SOLUTIONS,0000642701,"71,623.00",
Department of Health,The Christie NHS Foundation Trust,30/04/2020,Support and Maintenance Subscription, Digital Services,INTEROPERABILITY HEALTH UK LIMITED,0000642761,"26,022.00",
Department of Health,The Christie NHS Foundation Trust,16/04/2020,Software Licence Fee , Digital Services,IQ HEALTH TECH LTD,0000641481,"32,500.00",
Department of Health,The Christie NHS Foundation Trust,08/04/2020,Radiopharmacy Cleaning Services,Christie Medical Physics,ISOCLEANSE LTD,0000641348,"20,914.00",
Department of Health,The Christie NHS Foundation Trust,30/04/2020,Project Management Services ,Capital,MACE LTD,0000642549,"27,790.17",
Department of Health,The Christie NHS Foundation Trust,30/04/2020,Medical Systems Subscription,Clin Support & Spec Surgery,NHS SUPPLY CHAIN,0000642726,"47,013.00",
Department of Health,The Christie NHS Foundation Trust,16/04/2020,Medical Systems Subscription,Clin Support & Spec Surgery,NHS SUPPLY CHAIN,0000640408,"26,751.00",
Department of Health,The Christie NHS Foundation Trust,23/04/2020,Medical Systems Subscription,Clin Support & Spec Surgery,NHS SUPPLY CHAIN,0000642199,"43,583.17",
Department of Health,The Christie NHS Foundation Trust,23/04/2020,Siemens Healthcare,Clin Support & Spec Surgery,NHS SUPPLY CHAIN,0000641820,"107,350.58",
Department of Health,The Christie NHS Foundation Trust,08/04/2020,Maintenance Contract,Network Services,PHILIPS HEALTHCARE,641650,"164,144.00",
Department of Health,The Christie NHS Foundation Trust,16/04/2020,Maintenance Contract,Network Services,PHILIPS HEALTHCARE,0000642088,"52,100.00",
Department of Health,The Christie NHS Foundation Trust,16/04/2020,Consultantcy Fees,Programme Management Office,PURE dB LTD,0000641356,"22,000.00",
